bitfinex-derivatives/quotes_BNBF0:USTF0_20250309
["timestamp","ask_amount","ask_price","bid_price","bid_amount"]
[1741534077756,0.771,570.3,569.93,0.35092028]
[1741534078058,0.771,570.3,569.94,0.29509163]
[1741534080157,0.771,570.3,569.67,0.29509163]
[1741534080357,0.771,570.3,569.68,0.29509163]
[1741534080558,0.771,570.3,569.67,0.29509163]
[1741534080758,0.771,570.3,569.68,0.29509163]
[1741534080959,0.771,570.3,569.66,0.30519355]
[1741534080960,0.552,570.29,569.66,0.30519355]
[1741534081255,0.552,570.29,569.67,0.29500251]
[1741534081459,0.552,570.29,569.68,0.29500601]
[1741534081662,0.552,570.29,569.54,0.29500601]
[1741534081856,0.552,570.29,569.69,0.29500601]
[1741534082060,0.552,570.29,569.7,0.29500601]
[1741534082260,0.552,570.29,569.54,0.29500601]
[1741534082555,0.552,570.29,569.55,0.29500601]
[1741534082960,0.552,570.29,569.56,0.29500601]
[1741534083261,0.552,570.29,569.57,0.29500601]
[1741534083457,0.552,570.29,569.57,0.30523103]
[1741534083662,0.881,570.28,569.58,0.29500601]
[1741534084063,0.881,570.28,569.57,0.30523103]
[1741534084264,0.881,570.28,569.58,0.29494419]
[1741534084655,0.881,570.28,569.57,0.30526182]
[1741534084861,0.881,570.28,569.58,0.29494419]
[1741534087662,0.881,570.28,569.59,0.29494419]
[1741534087863,0.881,570.28,569.6,0.29494419]
[1741534088060,0.881,570.28,569.58,0.29494419]
[1741534088267,0.881,570.28,569.59,0.29494419]
[1741534088462,0.881,570.28,569.6,0.29494419]
[1741534088661,0.881,570.28,569.57,0.30523103]
[1741534088662,0.881,570.28,569.58,0.29494419]
[1741534088867,0.881,570.28,569.59,0.29494419]
[1741534089163,0.881,570.28,569.6,0.29494419]
[1741534089368,0.881,570.28,569.61,0.29494419]
[1741534089568,0.881,570.28,569.58,0.29494419]
[1741534089770,0.881,570.28,569.62,0.29494419]
[1741534089969,0.881,570.28,569.63,0.29494419]
[1741534090170,0.881,570.28,569.57,0.30523103]
[1741534090171,0.881,570.28,569.58,0.29494419]
[1741534090464,0.881,570.28,569.57,0.30523103]
[1741534090465,0.881,570.28,569.59,0.29494419]
[1741534090668,0.881,570.28,569.57,1.60672506]
[1741534090869,0.881,570.28,569.6,0.29494419]
[1741534091164,0.881,570.28,569.61,0.29494419]
[1741534091366,0.881,570.28,569.58,0.29494419]
[1741534091570,0.881,570.28,569.59,0.29458824]
[1741534091765,0.849,570.27,569.58,0.29458824]
[1741534091966,0.849,570.27,569.59,0.29458824]
[1741534092169,0.849,570.27,569.6,0.29458824]
[1741534092371,0.849,570.27,569.58,0.29458824]
[1741534092566,0.849,570.27,569.59,0.29458824]
[1741534092766,0.849,570.27,569.58,0.29458824]
[1741534093465,0.849,570.27,569.59,0.29457467]
[1741534093664,0.849,570.27,569.58,0.29457467]
[1741534093869,0.849,570.27,569.59,0.29457467]
[1741534094066,0.849,570.27,569.58,0.29457467]
[1741534094267,0.849,570.27,569.59,0.29457467]
[1741534094469,0.849,570.27,569.6,0.29457467]
[1741534094667,0.849,570.27,569.58,0.29457467]
[1741534094870,0.849,570.27,569.59,0.29457467]
[1741534095067,0.849,570.27,569.57,0.30521363]
[1741534095267,0.849,570.27,569.58,0.29465101]
[1741534096776,0.849,570.27,569.18,2.65725251]
[1741534096777,0.849,570.27,569.59,0.29465101]
[1741534096972,0.849,570.27,569.58,0.29465101]
[1741534097676,1.208,570.26,569.58,0.29465101]
[1741534098575,1.208,570.26,569.59,0.29465101]
[1741534098876,1.208,570.26,569.6,0.29465101]
[1741534099076,1.208,570.26,569.61,0.29465101]
[1741534099280,1.208,570.26,569.62,0.29465101]
[1741534099477,1.208,570.26,569.63,0.29465101]
[1741534099675,1.208,570.26,569.64,0.29465101]
[1741534099872,1.208,570.26,569.65,0.29465101]
[1741534100075,0.64,570.25,569.58,0.29465101]
[1741534100274,0.64,570.25,569.59,0.29465101]
[1741534100475,0.64,570.25,569.6,0.29465101]
[1741534100675,0.64,570.25,569.57,0.30519891]
[1741534100676,0.64,570.25,569.61,0.29465101]
[1741534100870,0.64,570.25,569.62,0.29465101]
[1741534101178,0.64,570.25,569.63,0.29465101]
[1741534101379,0.64,570.25,569.64,0.29465101]
[1741534101676,0.64,570.25,569.65,0.29465101]
[1741534101877,0.64,570.25,569.66,0.29465101]
[1741534102078,0.64,570.25,569.67,0.29465101]
[1741534102373,0.64,570.25,569.68,0.29465101]
[1741534102777,0.64,570.25,569.69,0.29465101]
[1741534103079,0.64,570.25,569.61,0.30517482]
[1741534103379,0.64,570.25,569.62,0.29460761]
[1741534103678,0.64,570.25,569.63,0.29460761]
[1741534103873,0.64,570.25,569.64,0.29460761]
[1741534104079,0.64,570.25,569.65,0.29460761]
[1741534104377,0.64,570.25,569.66,0.29460902]
[1741534104578,0.64,570.25,569.67,0.29460902]
[1741534104778,0.64,570.25,569.61,0.30517482]
[1741534104779,0.64,570.25,569.68,0.29460902]
[1741534104980,0.64,570.25,569.69,0.29460902]
[1741534105273,0.64,570.25,569.7,0.29460902]
[1741534105474,0.64,570.25,569.71,0.29460902]
[1741534106879,1.077,570.24,569.71,0.29460902]
[1741534108174,0.681,570.23,569.72,0.29460902]
[1741534108376,0.681,570.23,569.73,0.29460902]
[1741534108680,0.681,570.23,569.74,1.59612045]
[1741534108881,0.681,570.23,569.75,0.29460902]
[1741534109177,0.681,570.23,569.76,0.29460902]
[1741534109380,0.681,570.23,569.77,0.29460902]
[1741534109578,0.681,570.23,569.78,0.29460902]
[1741534109777,0.681,570.23,569.79,0.29460902]
[1741534109979,0.681,570.23,569.8,0.29460902]
[1741534110176,0.681,570.23,569.74,1.30151143]
[1741534110378,0.681,570.23,569.75,0.29438703]
[1741534110578,0.681,570.23,569.76,0.29438703]
[1741534110773,0.681,570.23,569.77,0.29438703]
[1741534110973,0.681,570.23,569.78,0.29438703]
[1741534111177,0.681,570.23,569.79,0.29438703]
[1741534111374,0.681,570.23,569.8,0.29438703]
[1741534111575,0.681,570.23,569.81,0.29438703]
[1741534111772,0.681,570.23,569.82,0.29438703]
[1741534111977,0.681,570.23,569.83,0.29438703]
[1741534112173,0.681,570.23,569.84,0.29438703]
[1741534112380,0.681,570.23,569.85,0.29438703]
[1741534112682,0.681,570.23,569.86,0.29438703]
[1741534112975,0.88,570.22,569.87,0.29438703]
[1741534113180,0.88,570.22,569.88,0.29438703]
[1741534113382,0.88,570.22,569.89,0.64533194]
[1741534113580,0.88,570.22,569.9,0.29438703]
[1741534113980,0.88,570.22,569.9,0.64532579]
[1741534114279,0.88,570.22,569.91,0.29438703]
[1741534114480,0.88,570.22,569.92,0.35092644]
[1741534114682,0.88,570.22,569.93,0.29438703]
[1741534116781,0.88,570.22,569.94,0.35091413]
[1741534116980,0.88,570.22,569.95,0.29438703]
[1741534117679,0.88,570.22,569.96,0.35090181]
[1741534117875,0.88,570.22,569.97,0.29438703]
[1741534121078,0.88,570.22,569.98,0.3508895]
[1741534121280,0.88,570.22,569.99,0.29438703]
[1741534121480,0.88,570.22,570.0,0.35087719]
[1741534121683,0.88,570.22,570.01,0.29438703]
[1741534121886,0.88,570.22,570.02,0.35086488]
[1741534122084,0.88,570.22,570.03,0.29438703]
[1741534122279,0.88,570.22,570.04,0.35085257]
[1741534122579,0.88,570.22,570.05,0.29438703]
[1741534123185,0.88,570.22,570.06,0.35084026]
[1741534123386,0.88,570.22,570.07,0.29438703]
[1741534123586,0.88,570.22,570.08,0.35082795]
[1741534123786,0.88,570.22,570.09,0.29438703]
[1741534123986,0.88,570.22,570.1,0.35081564]
[1741534124187,0.88,570.22,570.11,0.29438703]
[1741534124388,0.88,570.22,570.12,0.35080333]
[1741534124588,0.88,570.22,570.13,0.29438703]
[1741534124792,0.88,570.22,570.14,0.35079103]
[1741534124983,0.681,570.23,570.15,0.29438703]
[1741534125581,0.681,570.23,570.16,0.35077872]
[1741534125782,0.681,570.23,570.17,0.29438703]
[1741534126187,0.681,570.23,570.18,0.29438703]
[1741534126397,0.681,570.23,570.19,0.29438703]
[1741534126590,0.66937458,570.23,570.2,0.6451568]
[1741534126786,0.66937458,570.23,570.21,0.64515065]
[1741534126987,0.66937458,570.23,570.22,0.29440268]
[1741534128192,0.66937458,570.23,570.22,0.64514449]
[1741534130191,0.66937458,570.23,570.22,0.35074181]
[1741534130391,0.66937458,570.23,570.22,0.64461949]
[1741534132696,0.66937458,570.23,570.22,0.35074181]
[1741534132896,0.66937458,570.23,570.22,0.64415579]
[1741534138197,0.875,570.25,570.22,0.64415579]
[1741534138398,0.875,570.25,570.23,0.29341398]
[1741534138699,0.875,570.25,570.23,0.64414964]
[1741534138897,0.875,570.25,570.24,0.29341398]
[1741534139198,0.875,570.25,570.24,0.64414349]
[1741534142402,0.875,570.25,570.24,0.64422147]
[1741534144005,0.1981315,570.25,570.24,0.64422147]
[1741534146008,0.1981315,570.25,570.24,0.35072951]
[1741534146308,0.1981315,570.25,570.24,0.64423127]
[1741534154105,0.04667162,570.25,570.24,0.64423127]
[1741534155306,0.04667162,570.25,570.24,0.64416519]
[1741534157012,0.04667162,570.25,570.24,0.64417885]
[1741534161815,0.01218398,570.25,570.24,0.64417885]
[1741534164618,0.00289512,570.25,570.24,0.64417885]
[1741534164919,0.00289512,570.25,570.24,0.35072951]
[1741534165121,0.00289512,570.25,570.24,0.64408303]
[1741534165322,4.129,570.61,570.24,0.64408303]
[1741534165519,4.129,570.61,570.25,0.29335352]
[1741534165718,4.129,570.61,570.26,0.29335352]
[1741534165919,4.129,570.61,570.27,0.64406458]
[1741534166119,4.129,570.61,570.28,0.64405843]
[1741534166414,4.129,570.61,570.29,0.64405228]
[1741534166615,4.129,570.61,570.3,0.64404613]
[1741534166818,4.129,570.61,570.31,0.29335352]
[1741534167021,4.129,570.61,570.32,0.29335352]
[1741534167221,4.129,570.61,570.33,0.64402769]
[1741534167417,4.129,570.61,570.34,0.64402154]
[1741534167619,4.129,570.61,570.35,0.64401539]
[1741534167819,4.129,570.61,570.36,0.35065572]
[1741534168019,4.129,570.61,570.37,0.29338881]
[1741534168320,3.29,570.61,570.38,0.64402748]
[1741534168616,3.29,570.61,570.39,0.64402133]
[1741534168921,3.29,570.61,570.4,0.64401518]
[1741534169116,3.29,570.61,570.41,0.64400903]
[1741534169333,3.29,570.61,570.42,0.64400289]
[1741534169522,3.29,570.61,570.43,0.64399674]
[1741534169822,3.29,570.61,570.44,0.64399059]
[1741534170023,3.29,570.61,570.45,0.64398445]
[1741534170224,3.29,570.61,570.46,0.6439783]
[1741534170424,3.29,570.61,570.47,0.35058811]
[1741534170722,3.29,570.61,570.48,0.29318047]
[1741534170923,3.29,570.61,570.49,0.35057582]
[1741534171120,3.29,570.61,570.5,0.29318047]
[1741534171320,3.29,570.61,570.51,0.35056353]
[1741534171623,3.29,570.61,570.52,0.29318047]
[1741534171823,3.29,570.61,570.53,0.35055124]
[1741534172019,2.556,570.61,570.54,0.29318047]
[1741534172622,2.556,570.61,570.55,0.35053895]
[1741534172816,2.556,570.61,570.56,0.29318047]
[1741534173017,2.556,570.61,570.57,0.35052666]
[1741534173217,2.556,570.61,570.58,0.29318047]
[1741534173423,2.556,570.61,570.59,0.35051437]
[1741534173724,2.556,570.61,570.6,0.29318047]
[1741534174022,2.556,570.61,570.6,0.6436887]
[1741534175121,2.556,570.61,570.6,0.6436349]
[1741534175323,1.468,570.61,570.6,0.6436349]
[1741534176020,0.909,570.61,570.6,0.64354299]
[1741534177029,0.21615888,570.61,570.6,0.35050823]
[1741534177328,0.21615888,570.61,570.6,0.64343627]
[1741534178822,0.21615888,570.61,570.6,0.35050823]
[1741534179027,0.21615888,570.61,570.6,0.64337879]
[1741534179328,0.21615888,570.61,570.6,0.35050823]
[1741534179528,0.21615888,570.61,570.6,0.64336182]
[1741534181228,0.05662341,570.61,570.6,0.64336182]
[1741534182626,0.05662341,570.61,570.6,0.35050823]
[1741534182827,0.05662341,570.61,570.6,0.64345524]
[1741534186227,0.05662341,570.61,570.6,0.64370618]
[1741534190135,0.05662341,570.61,570.6,0.64383415]
[1741534191736,0.05662341,570.61,570.6,0.6437191]
[1741534193633,3.814,570.97,570.6,0.6437191]
[1741534193838,3.814,570.97,570.61,0.64371296]
[1741534194038,3.814,570.97,570.62,0.64370682]
[1741534194239,2.906,570.97,570.63,0.64370067]
[1741534194433,2.906,570.97,570.64,0.64369453]
[1741534194633,2.906,570.97,570.65,0.64368839]
[1741534194832,2.906,570.97,570.66,0.64368225]
[1741534195035,2.906,570.97,570.67,0.64367611]
[1741534195234,2.906,570.97,570.68,0.64366997]
[1741534195431,2.906,570.97,570.69,0.64366383]
[1741534195634,2.906,570.97,570.7,0.64365768]
[1741534195939,2.906,570.97,570.71,0.64365154]
[1741534196133,2.906,570.97,570.72,0.29321087]
[1741534196440,2.906,570.97,570.71,0.35044067]
[1741534196632,2.906,570.97,570.72,0.29320487]
[1741534199139,2.906,570.97,570.73,0.29317035]
[1741534199341,2.906,570.97,570.72,0.29317035]
[1741534199541,2.906,570.97,570.74,0.29317035]
[1741534199834,2.906,570.97,570.75,0.29317035]
[1741534200035,2.906,570.97,570.76,0.29317035]
[1741534200239,1.535,570.97,570.77,0.29317035]
[1741534200440,1.535,570.97,570.72,0.29317035]
[1741534200635,1.535,570.97,570.73,0.29317035]
[1741534200840,1.535,570.97,570.72,0.29317035]
[1741534202043,1.535,570.97,570.73,0.29315443]
[1741534202345,1.535,570.97,570.74,0.29315443]
[1741534202643,1.535,570.97,570.75,0.29315443]
[1741534202838,1.535,570.97,570.71,0.35044067]
[1741534202839,1.535,570.97,570.72,0.29315443]
[1741534205746,0.76,570.97,570.72,0.29315443]
[1741534205947,0.76,570.97,570.71,0.35044067]
[1741534206253,0.76,570.97,570.72,0.29311037]
[1741534206854,0.76,570.97,570.73,0.2930488]
[1741534207049,0.76,570.97,570.71,0.35044067]
[1741534207050,0.76,570.97,570.72,0.2930488]
[1741534207250,0.76,570.97,570.73,0.2930488]
[1741534207454,0.76,570.97,570.72,0.2930488]
[1741534207655,0.697,571.06,570.73,0.64347719]
[1741534207854,0.697,571.06,570.74,0.64347105]
[1741534208155,0.697,571.06,570.58,0.3047619]
[1741534208156,0.697,571.06,570.75,0.64346491]
[1741534208453,0.697,571.06,570.76,0.64345877]
[1741534208654,0.697,571.06,570.77,0.64345264]
[1741534208849,0.697,571.06,570.78,0.6434465]
[1741534209050,0.697,571.06,570.79,0.64344036]
[1741534209355,0.697,571.06,570.8,0.64343422]
[1741534209554,0.697,571.06,570.81,0.2930488]
[1741534216066,0.697,571.06,570.82,0.35037314]
[1741534216363,0.697,571.06,570.83,0.2930488]
[1741534216563,2.291,571.09,570.83,0.2930488]
[1741534217364,1.366,571.09,570.83,0.2930488]
[1741534219063,1.366,571.09,570.84,0.29325224]
[1741534219259,1.366,571.09,570.83,0.29325224]
[1741534219464,1.366,571.09,570.84,0.29325224]
[1741534219660,1.366,571.09,570.85,0.29325224]
[1741534219859,1.366,571.09,570.83,0.29325224]
[1741534220058,1.366,571.09,570.84,0.29325224]
[1741534220261,0.597,571.09,570.83,0.29325224]
[1741534221165,0.597,571.09,570.82,0.35037314]
[1741534221659,0.597,571.09,570.83,0.29326161]
[1741534222763,0.597,571.09,570.82,0.35037314]
[1741534226861,0.597,571.09,570.83,0.29308855]
[1741534227966,0.597,571.09,570.82,0.35037314]
[1741534228160,0.597,571.09,570.83,0.29306276]
[1741534228362,0.597,571.09,570.82,0.35037314]
[1741534228562,0.597,571.09,570.83,0.29303904]
[1741534229360,1.347,571.19,570.83,0.29303904]
[1741534236574,0.673,571.19,570.83,0.29303904]
[1741534238277,0.673,571.19,570.84,0.35036087]
[1741534238477,0.673,571.19,570.85,0.29303904]
[1741534239070,0.673,571.19,570.86,0.2927554]
[1741534239273,0.673,571.19,570.87,0.2927554]
[1741534239477,0.673,571.19,570.85,0.2927554]
[1741534239669,0.673,571.19,570.86,0.2927554]
[1741534239870,0.673,571.19,570.85,0.2927554]
[1741534240074,0.673,571.19,570.86,0.2927554]
[1741534240375,0.673,571.19,570.87,0.2927554]
[1741534240575,0.673,571.19,570.85,0.2927554]
[1741534240975,0.673,571.19,570.84,0.35036087]
[1741534241172,0.673,571.19,570.85,0.29282441]
[1741534241773,0.673,571.19,570.84,0.35036087]
[1741534243176,2.229,571.2,570.84,0.35036087]
[1741534243573,1.30653769,571.19,570.84,0.35036087]
[1741534243779,2.229,571.2,570.84,0.35036087]
[1741534246379,2.229,571.2,570.85,0.29269291]
[1741534247178,2.229,571.2,570.86,0.35034859]
[1741534247380,2.229,571.2,570.87,0.29269291]
[1741534248388,2.229,571.2,570.88,0.29260752]
[1741534248587,2.229,571.2,570.87,0.29260752]
[1741534248782,1.413,571.2,570.88,0.29260752]
[1741534248976,1.413,571.2,570.89,0.29260752]
[1741534249179,1.413,571.2,570.9,0.29260752]
[1741534249180,0.646,571.2,570.9,0.29260752]
[1741534249377,0.646,571.2,570.91,0.29260752]
[1741534249580,0.646,571.2,570.92,0.29260752]
[1741534249782,0.646,571.2,570.87,0.29260752]
[1741534249982,0.646,571.2,570.88,0.29260752]
[1741534250177,0.646,571.2,570.87,0.29260752]
[1741534250482,0.646,571.2,570.88,0.29260752]
[1741534250681,0.646,571.2,570.87,0.29260752]
[1741534250884,0.646,571.2,570.88,0.29260752]
[1741534251078,0.646,571.2,570.87,0.29260752]
[1741534251282,0.646,571.2,570.88,0.29260752]
[1741534251483,0.646,571.2,570.89,0.29260752]
[1741534251682,0.646,571.2,570.9,0.29260752]
[1741534251985,0.646,571.2,570.91,0.29260752]
[1741534253285,0.646,571.2,570.92,0.35031177]
[1741534253585,0.646,571.2,570.93,0.29260752]
[1741534253984,0.646,571.2,570.93,0.64291316]
[1741534254186,0.646,571.2,570.94,0.29260752]
[1741534259590,1.529,571.21,570.94,0.29260752]
[1741534260992,1.529,571.21,570.93,0.35030564]
[1741534261193,1.529,571.21,570.94,0.29259687]
[1741534262496,1.529,571.21,570.93,0.35030564]
[1741534262690,1.529,571.21,570.94,0.2926032]
[1741534265099,0.645,571.21,570.94,0.2926032]
[1741534266300,0.645,571.21,570.95,0.29256086]
[1741534266501,0.645,571.21,570.94,0.29256086]
[1741534266799,0.645,571.21,570.95,0.29256086]
[1741534267000,0.645,571.21,570.94,0.29256086]
[1741534267994,0.645,571.21,570.93,0.35030564]
[1741534268202,0.645,571.21,570.94,0.29246576]
[1741534269798,0.645,571.21,570.93,0.35030564]
[1741534272000,0.645,571.21,570.94,0.29262745]
[1741534273405,0.667,571.26,570.94,0.29262745]
[1741534275306,0.667,571.26,570.93,0.35030564]
[1741534275606,0.667,571.26,570.94,0.29259468]
[1741534277105,0.667,571.26,570.93,0.35030564]
[1741534278105,0.99302322,571.25,570.93,0.35030564]
[1741534278303,1.30466425,571.25,570.93,0.35030564]
[1741534278506,1.30466425,571.24,570.93,0.35030564]
[1741534278902,1.30466425,571.23,570.93,0.35030564]
[1741534279409,1.30466425,571.22,570.93,0.35030564]
[1741534280009,0.667,571.26,570.93,0.35030564]
[1741534281714,0.667,571.26,570.94,0.29273344]
[1741534284014,0.667,571.26,570.93,0.35030564]
[1741534295920,1.30559329,571.25,570.93,0.35030564]
[1741534296924,1.30559329,571.24,570.93,0.35030564]
[1741534297423,1.30559329,571.23,570.93,0.35030564]
[1741534298022,1.30559329,571.22,570.93,0.35030564]
[1741534298825,1.30559329,571.21,570.93,0.35030564]
[1741534299227,0.667,571.26,570.93,0.35030564]
[1741534302433,1.30493981,571.25,570.93,0.35030564]
[1741534302932,0.667,571.26,570.93,0.35030564]
[1741534303127,3.253,571.3,570.93,0.35030564]
[1741534303331,1.30493259,571.29,570.93,0.35030564]
[1741534303833,1.30493259,571.28,570.93,0.35030564]
[1741534304333,1.30493259,571.27,570.93,0.35030564]
[1741534304841,3.253,571.3,570.93,0.35030564]
[1741534305531,1.30497713,571.29,570.93,0.35030564]
[1741534306235,1.30497713,571.28,570.93,0.35030564]
[1741534306628,1.30497713,571.27,570.93,0.35030564]
[1741534307235,2.29834615,571.26,570.93,0.35030564]
[1741534307432,1.30497713,571.26,570.93,0.35030564]
[1741534307836,1.30497713,571.25,570.93,0.35030564]
[1741534308237,1.30497713,571.24,570.93,0.35030564]
[1741534309034,1.30497713,571.23,570.93,0.35030564]
[1741534309638,1.30497713,571.22,570.93,0.35030564]
[1741534310236,1.30497713,571.21,570.93,0.35030564]
[1741534310539,4.51,571.3,570.93,0.35030564]
[1741534310737,0.99291427,571.29,570.93,0.35030564]
[1741534310943,0.99291427,571.28,570.93,0.35030564]
[1741534311138,0.99291427,571.27,570.93,0.35030564]
[1741534311340,1.30452719,571.28,570.93,0.35030564]
[1741534311541,1.30452719,571.26,570.93,0.35030564]
[1741534312037,1.30452719,571.25,570.93,0.35030564]
[1741534312549,0.9928636,571.24,570.93,0.35030564]
[1741534312749,0.9928636,571.23,570.3,1.30151143]
[1741534312948,0.9928636,571.22,570.44,0.30479794]
[1741534313248,0.9928636,571.21,570.45,0.64461158]
[1741534313443,0.9928636,571.2,570.46,0.64460543]
[1741534313651,0.9928636,571.19,570.47,0.29401118]
[1741534313944,2.29739079,571.18,570.47,0.29401118]
[1741534314149,0.9928636,571.17,570.47,0.29401118]
[1741534314350,0.9928636,571.16,570.47,0.29401118]
[1741534314549,0.9928636,571.15,570.48,0.35058196]
[1741534314750,0.9928636,571.14,570.49,0.29401118]
[1741534314945,0.9928636,571.13,570.5,0.35056967]
[1741534315254,0.9928636,571.12,570.51,0.29401118]
[1741534315451,0.9928636,571.11,570.51,0.29401118]
[1741534315746,2.29739079,571.1,570.51,0.29401118]
[1741534316049,2.29739079,571.09,570.51,0.29401118]
[1741534316251,0.9928636,571.08,570.51,0.29401118]
[1741534316452,3.52252719,571.09,570.51,0.29401118]
[1741534316652,2.29623616,571.08,570.51,0.29401118]
[1741534316845,0.99170722,571.07,570.51,0.29401118]
[1741534317046,2.29625554,571.06,570.51,0.29401118]
[1741534317250,1.30452719,571.06,570.51,0.29401118]
[1741534317648,0.99125502,571.05,570.51,0.29401118]
[1741534317852,1.30452719,571.05,570.51,0.29401118]
[1741534318551,1.91052719,571.04,570.51,0.29401118]
[1741534319046,1.30452719,571.03,570.51,0.29401118]
[1741534319552,0.606,571.04,570.51,0.29401118]
[1741534321548,0.606,571.04,570.5,0.35056967]
[1741534321749,0.714,571.03,570.52,0.29420835]
[1741534321950,0.714,571.03,570.53,0.29420835]
[1741534322151,0.714,571.03,570.51,0.29420835]
[1741534323548,0.714,571.03,570.5,0.35056967]
[1741534323757,0.714,571.03,570.51,0.29400027]
[1741534325646,0.755,571.02,570.52,0.35055738]
[1741534325848,0.755,571.02,570.53,0.29400027]
[1741534326254,0.755,571.02,570.54,0.35054509]
[1741534326453,0.661,571.01,570.55,0.29400027]
[1741534326655,0.661,571.01,570.56,0.3505328]
[1741534326852,0.661,571.01,570.57,0.29400027]
[1741534327049,0.661,571.01,570.58,0.35052052]
[1741534327253,0.661,571.01,570.59,0.29374788]
[1741534327550,0.661,571.01,570.6,0.35050823]
[1741534327757,0.661,571.01,570.61,0.29374788]
[1741534327956,0.661,571.01,570.62,0.35049595]
[1741534328157,0.661,571.01,570.63,0.29374788]
[1741534328357,0.661,571.01,570.64,0.35048366]
[1741534328558,0.661,571.01,570.65,0.29374788]
[1741534328757,0.661,571.01,570.66,0.35047138]
[1741534328958,0.661,571.01,570.67,0.29374788]
[1741534330561,0.661,571.01,570.68,0.3504591]
[1741534330755,0.661,571.01,570.69,0.29337657]
[1741534330955,0.661,571.01,570.7,0.35044681]
[1741534331160,0.661,571.01,570.71,0.29337657]
[1741534334456,0.661,571.01,570.72,0.29363905]
[1741534334654,0.661,571.01,570.71,0.29363905]
[1741534334864,0.661,571.01,570.73,0.29363905]
[1741534335156,0.661,571.01,570.7,0.35044681]
[1741534335356,0.661,571.01,570.71,0.29363187]
[1741534338258,0.661,571.01,570.72,0.35043453]
[1741534338458,0.661,571.01,570.73,0.29363187]
[1741534343262,0.661,571.01,570.72,0.35043453]
[1741534343460,0.661,571.01,570.73,0.29351617]
[1741534346968,0.661,571.01,570.74,0.29363179]
[1741534347168,0.661,571.01,570.75,0.29363179]
[1741534347467,0.661,571.01,570.76,0.29363179]
[1741534347665,0.661,571.01,570.72,0.35043453]
[1741534347666,0.661,571.01,570.73,0.29363179]
[1741534347868,0.661,571.01,570.72,0.35043453]
[1741534347869,0.661,571.01,570.74,0.29363179]
[1741534348065,0.661,571.01,570.73,0.29363179]
[1741534348663,0.661,571.01,570.72,0.35043453]
[1741534348869,0.661,571.01,570.73,0.29379794]
[1741534349067,0.661,571.01,570.72,0.35043453]
[1741534352374,3.046,571.09,570.72,0.35043453]
[1741534355175,3.745,571.09,570.72,0.35043453]
[1741534355377,3.745,571.09,570.73,0.293864]
[1741534355575,4.405,571.09,570.73,0.293864]
[1741534360379,3.521,571.09,570.73,0.293864]
[1741534364977,3.521,571.09,570.72,0.35043453]
[1741534365281,3.521,571.09,570.73,0.29410744]
[1741534366981,3.521,571.09,570.74,0.29415275]
[1741534367181,3.521,571.09,570.73,0.29415275]
[1741534367378,3.521,571.09,570.74,0.29415275]
[1741534367582,3.521,571.09,570.73,0.29415275]
[1741534367782,3.521,571.09,570.74,0.29415275]
[1741534368081,2.734,571.09,570.72,0.35043453]
[1741534368578,1.30537385,571.08,570.72,0.35043453]
[1741534369185,1.30537385,571.07,570.72,0.35043453]
[1741534369384,3.399,571.09,570.72,0.35043453]
[1741534369982,1.30542968,571.08,570.72,0.35043453]
[1741534370385,1.30542968,571.07,570.72,0.35043453]
[1741534370985,3.399,571.09,570.72,0.35043453]
[1741534371187,4.166,571.09,570.72,0.35043453]
[1741534371381,1.30551256,571.08,570.72,0.35043453]
[1741534371985,1.30551256,571.07,570.72,0.35043453]
[1741534372686,4.166,571.09,570.72,0.35043453]
[1741534373087,1.30558971,571.08,570.72,0.35043453]
[1741534373588,1.30558971,571.07,570.72,0.35043453]
[1741534373985,1.30558971,571.06,570.72,0.35043453]
[1741534374595,1.30558971,571.05,570.72,0.35043453]
[1741534374891,1.30558971,571.04,570.72,0.35043453]
[1741534375488,1.30558971,571.03,570.72,0.35043453]
[1741534375888,2.29944639,571.02,570.72,0.35043453]